bitfinex-derivatives/quotes_BTCF0:USTF0_20250309
["timestamp","ask_amount","ask_price","bid_price","bid_amount"]
[1741491903556,0.1362253,86191.0,86190.0,0.1331261]
[1741491904554,0.10431176,86192.0,86191.0,0.0696253]
[1741491904754,0.10431176,86192.0,86191.0,0.1337253]
[1741491905351,0.13731176,86192.0,86191.0,0.1337253]
[1741491905556,0.20693626,86192.0,86191.0,0.1337253]
[1741491905741,0.10431176,86192.0,86191.0,0.1337253]
[1741491905946,0.10431176,86192.0,86191.0,0.1347253]
[1741491906448,0.17393626,86192.0,86191.0,0.1347253]
[1741491906648,0.10431176,86192.0,86191.0,0.1347253]
[1741491906847,0.10431176,86192.0,86191.0,0.4955253]
[1741491911664,0.1332223,86195.0,86191.0,0.4259]
[1741491911954,0.1332223,86195.0,86194.0,0.0696229]
[1741491912957,0.1332223,86195.0,86194.0,0.1319229]
[1741491913358,0.0636,86195.0,86194.0,0.1319229]
[1741491913862,0.0311,86195.0,86194.0,0.1319229]
[1741491914954,0.10431176,86198.0,86197.0,0.0696205]
[1741491915153,0.17393146,86198.0,86197.0,0.0696205]
[1741491915355,0.0696197,86198.0,86197.0,0.0696205]
[1741491915663,0.1332197,86198.0,86197.0,0.0696205]
[1741491915860,0.1332197,86198.0,86197.0,0.1327205]
[1741491917360,0.10431176,86199.0,86198.0,0.0696197]
[1741491917564,0.10431176,86199.0,86198.0,0.1312197]
[1741491917766,0.20433066,86199.0,86198.0,0.1312197]
[1741491917959,0.23583066,86199.0,86198.0,0.1312197]
[1741491918758,0.16621176,86199.0,86198.0,0.1312197]
[1741491918964,0.16621176,86199.0,86198.0,0.14308821]
[1741491919561,0.13471176,86199.0,86198.0,0.14308821]
[1741491919866,0.0304,86199.0,86198.0,0.14308821]
[1741491921763,0.1,86200.0,86199.0,0.0696189]
[1741491921970,0.1,86200.0,86199.0,0.1302189]
[1741491927486,0.1,86200.0,86199.0,0.3381455]
[1741491930591,0.1619,86200.0,86199.0,0.3381455]
[1741491931480,0.1,86200.0,86199.0,0.3381455]
[1741491931884,0.1619,86200.0,86199.0,0.1302189]
[1741491932480,0.1311,86200.0,86199.0,0.1302189]
[1741491932889,0.200718,86200.0,86199.0,0.0606]
[1741491933190,0.200718,86200.0,86199.0,0.0636]
[1741491933985,0.200718,86200.0,86199.0,0.1332189]
[1741491935380,0.200718,86200.0,86199.0,0.1312189]
[1741491935694,0.200718,86200.0,86199.0,0.1302189]
[1741491935879,0.232818,86200.0,86199.0,0.1302189]
[1741491936590,0.232818,86200.0,86199.0,0.1312189]
[1741491936993,0.232818,86200.0,86199.0,0.001]
[1741491937195,0.232818,86200.0,86198.0,0.3608]
[1741491937196,0.0696189,86199.0,86198.0,0.3608]
[1741491937694,0.1317189,86199.0,86198.0,0.3608]
[1741491938091,0.1317189,86199.0,86198.0,0.4304197]
[1741491938294,0.1317189,86199.0,86198.0,0.3608]
[1741491938896,0.1317189,86199.0,86198.0,0.4236]
[1741491939587,0.1317189,86199.0,86198.0,0.0628]
[1741491940895,0.0696261,86190.0,86189.0,0.2079266]
[1741491941199,0.4304261,86190.0,86189.0,0.2079266]
[1741491941889,0.4930261,86190.0,86189.0,0.2079266]
[1741491942290,0.4930261,86190.0,86189.0,0.2089266]
[1741491942695,0.4930261,86190.0,86189.0,0.2099266]
[1741491945085,0.54946245,86190.0,86189.0,0.002]
[1741491947395,0.47983635,86190.0,86181.0,0.0624]
[1741491947696,0.4304326,86182.0,86181.0,0.0624]
[1741491948696,0.50494293,86182.0,86181.0,0.0664]
[1741491948890,0.50494293,86182.0,86181.0,0.0704]
[1741491949398,0.47324293,86182.0,86181.0,0.0704]
[1741491949597,0.47324293,86182.0,86181.0,0.1400334]
[1741491950395,0.47324293,86182.0,86181.0,0.1706334]
[1741491951095,0.47324293,86182.0,86181.0,0.101]
[1741491952299,0.47324293,86182.0,86181.0,0.0704]
[1741491956306,0.11244293,86182.0,86181.0,0.0704]
[1741491957715,0.11244293,86182.0,86177.0,0.00017406]
[1741491957906,0.0696358,86178.0,86177.0,0.00017406]
[1741491958209,0.1448358,86178.0,86177.0,0.00017406]
[1741491958816,0.2088358,86178.0,86177.0,0.00317406]
[1741491958999,0.2088358,86178.0,86177.0,0.00617406]
[1741491959606,0.1392,86178.0,86177.0,0.003]
[1741491959911,0.2088358,86178.0,86177.0,0.003]
[1741491962212,0.2088358,86178.0,86172.0,0.0321]
[1741491962416,0.0696407,86172.0,86171.0,0.0316]
[1741491962808,0.1630407,86172.0,86171.0,0.0316]
[1741491963513,0.1590407,86172.0,86171.0,0.0316]
[1741491964115,0.1590407,86172.0,86171.0,0.0356]
[1741491965317,0.1590407,86172.0,86171.0,0.0396]
[1741491966814,0.1590407,86172.0,86171.0,0.0715]
[1741491969115,0.1272407,86172.0,86171.0,0.0715]
[1741491969323,0.0963407,86172.0,86171.0,0.0715]
[1741491970219,0.0656407,86172.0,86171.0,0.0715]
[1741491970818,0.0970407,86172.0,86171.0,0.0715]
[1741491971013,0.1287407,86172.0,86171.0,0.0715]
[1741491971319,0.0970407,86172.0,86171.0,0.0715]
[1741491971817,0.0696585,86150.0,86149.0,0.4304585]
[1741491972319,0.0696585,86150.0,86149.0,0.43897127]
[1741491972824,0.0676585,86150.0,86149.0,0.43897127]
[1741491973120,0.0656585,86150.0,86149.0,0.47007127]
[1741491973419,0.07701769,86150.0,86149.0,0.47007127]
[1741491973622,0.0676585,86150.0,86149.0,0.48407127]
[1741491974117,0.0666585,86150.0,86149.0,0.48207127]
[1741491974514,0.07858599,86150.0,86149.0,0.48207127]
[1741491974815,0.0666585,86150.0,86149.0,0.48207127]
[1741491975522,0.0656585,86150.0,86149.0,0.53997127]
[1741491975913,0.0656585,86150.0,86149.0,0.10951197]
[1741491976214,0.07702855,86150.0,86149.0,0.10951197]
[1741491976412,0.43782855,86150.0,86149.0,0.10951197]
[1741491977118,0.46932855,86150.0,86149.0,0.10951197]
[1741491978416,0.46932855,86150.0,86149.0,0.17917127]
[1741491979124,0.46932855,86150.0,86149.0,0.10951197]
[1741491979519,0.46932855,86150.0,86149.0,0.17917127]
[1741491983327,0.37217005,86150.0,86149.0,0.17917127]
[1741491983514,0.44182855,86150.0,86149.0,0.17917127]
[1741491986128,0.08102855,86150.0,86149.0,0.17917127]
[1741491987329,0.08102855,86150.0,86149.0,0.19107812]
[1741491987521,0.08102855,86150.0,86149.0,0.17917127]
[1741491991422,0.01137005,86150.0,86149.0,0.17917127]
[1741491991731,0.0696585,86150.0,86149.0,0.17917127]
[1741491992731,0.10422384,86153.0,86149.0,0.17917127]
[1741491992732,0.10422384,86153.0,86152.0,0.0696568]
[1741491993027,0.11604457,86153.0,86152.0,0.08102365]
[1741491993527,0.11604457,86153.0,86152.0,0.14162365]
[1741491994236,0.08147673,86153.0,86152.0,0.1302568]
[1741491994536,0.11297673,86153.0,86152.0,0.1302568]
[1741491995028,0.08147673,86153.0,86152.0,0.1302568]
[1741491995228,0.08147673,86153.0,86152.0,0.1352568]
[1741491997634,0.11397673,86153.0,86152.0,0.1352568]
[1741491998427,0.14717673,86153.0,86152.0,0.1352568]
[1741492003034,0.11467673,86153.0,86152.0,0.1352568]
[1741492004044,0.11467673,86153.0,86152.0,0.1050568]
[1741492004338,0.14467673,86153.0,86152.0,0.1050568]
[1741492004739,0.11467673,86153.0,86152.0,0.1050568]
[1741492005827,0.14597673,86153.0,86152.0,0.1050568]
[1741492009344,0.18398586,86153.0,86152.0,0.1050568]
[1741492010040,0.25364186,86153.0,86152.0,0.1050568]
[1741492011939,0.25364186,86153.0,86152.0,0.11683709]
[1741492012141,0.25364186,86153.0,86152.0,0.1050568]
[1741492013136,0.21912864,86153.0,86152.0,0.1050568]
[1741492016547,0.21912864,86153.0,86152.0,0.1360568]
[1741492016747,0.04502073,86153.0,86152.0,0.1360568]
[1741492016950,0.01182073,86153.0,86152.0,0.1360568]
[1741492017248,0.0696557,86154.0,86153.0,0.0696552]
[1741492017439,0.0696557,86154.0,86153.0,0.1319552]
[1741492017641,0.1332557,86154.0,86153.0,0.1319552]
[1741492018348,0.14475086,86154.0,86153.0,0.14373314]
[1741492018647,0.14475086,86154.0,86153.0,0.1319552]
[1741492018948,0.14475086,86154.0,86153.0,0.1369552]
[1741492019640,0.11375086,86154.0,86153.0,0.1369552]
[1741492019846,0.04409516,86154.0,86153.0,0.1369552]
[1741492020245,0.11375036,86154.0,86153.0,0.1369552]
[1741492021043,0.04409516,86154.0,86153.0,0.1369552]
[1741492021239,0.11375036,86154.0,86153.0,0.1369552]
[1741492022341,0.04409516,86154.0,86153.0,0.1369552]
[1741492022846,0.11375036,86154.0,86153.0,0.1369552]
[1741492025847,0.11375036,86154.0,86153.0,0.3448818]
[1741492026044,0.11375036,86154.0,86153.0,0.3138818]
[1741492026439,0.11375036,86154.0,86153.0,0.2825818]
[1741492026639,0.14565036,86154.0,86153.0,0.2129266]
[1741492028146,0.14565036,86154.0,86153.0,0.20394344]
[1741492028951,0.14565036,86154.0,86153.0,0.20494344]
[1741492029548,0.14865036,86154.0,86153.0,0.20394344]
[1741492029755,0.15265036,86154.0,86153.0,0.20394344]
[1741492030951,0.0696649,86142.0,86141.0,0.00017406]
[1741492031160,0.5056649,86142.0,86141.0,0.00017406]
[1741492031847,0.5689649,86142.0,86141.0,0.00017406]
[1741492032247,0.5689649,86142.0,86130.0,0.27768506]
[1741492032248,0.8601,86142.0,86130.0,0.27768506]
[1741492032448,0.4304738,86131.0,86130.0,0.27768506]
[1741492033350,0.4915738,86131.0,86130.0,0.27768506]
[1741492033761,0.4925738,86131.0,86130.0,0.28621343]
[1741492034550,0.50446365,86131.0,86130.0,0.28621343]
[1741492034944,0.50446365,86131.0,86130.0,0.31751343]
[1741492035153,0.50646365,86131.0,86130.0,0.31751343]
[1741492035357,0.50646365,86131.0,86130.0,0.38718803]
[1741492036162,0.50546365,86131.0,86130.0,0.37418803]
[1741492036353,0.50546365,86131.0,86130.0,0.10950297]
[1741492036753,0.50546365,86131.0,86130.0,0.03982837]
[1741492038455,0.50546365,86131.0,86130.0,0.10950297]
[1741492038656,0.3628,86131.0,86130.0,0.10950297]
[1741492039055,0.3628,86131.0,86130.0,0.14190297]
[1741492040767,0.0716738,86131.0,86130.0,0.14190297]
[1741492041269,0.002,86131.0,86130.0,0.50270297]
[1741492042562,0.002,86131.0,86130.0,0.43302837]
[1741492042760,0.002,86131.0,86130.0,0.50270297]
[1741492044550,0.00017406,86139.0,86138.0,0.0696682]
[1741492044754,0.00017406,86139.0,86138.0,0.4304682]
[1741492045259,0.10410303,86147.0,86146.0,0.0696617]
[1741492045561,0.10410303,86147.0,86146.0,0.4304617]
[1741492046264,0.10410303,86147.0,86146.0,0.4956617]
[1741492046561,0.10410303,86147.0,86146.0,0.50749043]
[1741492046961,0.10410303,86147.0,86146.0,0.87269043]
[1741492047159,0.05420303,86147.0,86146.0,1.02269043]
[1741492047460,0.13907338,86150.0,86149.0,0.0696593]
[1741492047661,0.13907338,86150.0,86149.0,1.0208993]
[1741492048751,0.002,86150.0,86149.0,1.0208993]
[1741492049960,0.002,86150.0,86149.0,0.8708993]
[1741492050857,0.002,86150.0,86149.0,0.9339993]
[1741492051257,0.002,86150.0,86149.0,0.5731993]
[1741492051458,0.002,86150.0,86149.0,1.2947993]
[1741492051654,0.002,86150.0,86149.0,1.4447993]
[1741492051859,0.00191618,86155.0,86154.0,0.0696552]
[1741492052059,0.00017406,86155.0,86154.0,0.0696552]
[1741492052260,0.00017406,86155.0,86154.0,0.4348552]
[1741492052660,0.1040675,86162.0,86161.0,0.0696496]
[1741492052865,0.1040675,86162.0,86161.0,0.5056496]
[1741492053259,0.1040675,86162.0,86161.0,0.4304496]
[1741492053469,0.1040675,86162.0,86161.0,0.5697496]
[1741492054461,0.00017406,86170.0,86169.0,0.0696431]
[1741492054770,0.00017406,86170.0,86169.0,0.4304431]
[1741492057164,0.00417406,86170.0,86169.0,0.4304431]
[1741492058462,0.00417406,86170.0,86169.0,0.5056431]
[1741492059861,0.00417406,86170.0,86169.0,0.51742334]
[1741492064566,0.00417406,86170.0,86169.0,0.61232334]
[1741492065172,0.00017406,86170.0,86169.0,0.61632334]
[1741492065473,0.00017406,86170.0,86169.0,0.97712334]
[1741492065671,0.00017406,86170.0,86169.0,0.90192334]
[1741492065970,0.00017406,86170.0,86169.0,0.97712334]
[1741492066774,0.00017406,86170.0,86169.0,0.97512334]
[1741492070270,0.00017406,86170.0,86169.0,1.30872334]
[1741492074581,0.00017406,86170.0,86169.0,1.27692334]
[1741492075967,0.00017406,86170.0,86169.0,0.91172334]
[1741492077081,0.00017406,86170.0,86169.0,0.90972334]
[1741492077272,0.00017406,86170.0,86169.0,0.91172334]
[1741492078871,0.06981636,86170.0,86169.0,0.8684431]
[1741492079565,0.06981636,86170.0,86169.0,0.7932431]
[1741492080172,0.00017406,86170.0,86169.0,0.7912431]
[1741492080377,0.00117406,86170.0,86169.0,0.8523431]
[1741492081075,0.00217406,86170.0,86169.0,0.8214431]
[1741492081673,0.07181636,86170.0,86169.0,0.8214431]
[1741492082372,0.07181636,86170.0,86169.0,0.7912431]
[1741492082776,0.06981636,86170.0,86169.0,0.0706431]
[1741492083672,0.07181636,86170.0,86169.0,0.0696431]
[1741492084180,0.13541636,86170.0,86169.0,0.0696431]
[1741492088182,0.06577406,86170.0,86169.0,0.0696431]
[1741492088777,0.06577406,86170.0,86169.0,0.1007431]
[1741492088977,0.06577406,86170.0,86169.0,0.1327431]
[1741492089186,0.13541636,86170.0,86169.0,0.1327431]
[1741492089986,0.13441636,86170.0,86169.0,0.1327431]
[1741492090584,0.13341636,86170.0,86169.0,0.1327431]
[1741492090784,0.13441636,86170.0,86169.0,0.1327431]
[1741492092387,0.13541636,86170.0,86169.0,0.1327431]
[1741492092585,0.06577406,86170.0,86169.0,0.1327431]
[1741492093389,0.03247406,86170.0,86169.0,0.1327431]
[1741492095594,0.03047406,86170.0,86169.0,0.1337431]
[1741492096293,0.03047406,86170.0,86169.0,0.1327431]
[1741492096490,0.20870598,86184.0,86183.0,0.0696318]
[1741492097185,0.24070598,86184.0,86183.0,0.0696318]
[1741492097698,0.27180598,86184.0,86183.0,0.0696318]
[1741492097885,0.30490598,86184.0,86183.0,0.0696318]
[1741492098086,0.23527338,86184.0,86183.0,0.0696318]
[1741492098489,0.30490438,86184.0,86183.0,0.0696318]
[1741492098792,0.30490438,86184.0,86183.0,0.1346318]
[1741492099392,0.30890438,86184.0,86183.0,0.1346318]
[1741492100094,0.23827338,86184.0,86183.0,0.1346318]
[1741492100394,0.168831,86184.0,86183.0,0.14641772]
[1741492100888,0.168831,86184.0,86183.0,0.1346318]
[1741492101596,0.168831,86184.0,86183.0,0.14643401]
[1741492102093,0.168831,86184.0,86183.0,0.1346318]
[1741492103988,0.168831,86184.0,86183.0,0.14332333]
[1741492107392,0.0992,86184.0,86183.0,0.14332333]
[1741492107887,0.168831,86184.0,86183.0,0.14332333]
[1741492109602,0.165831,86184.0,86183.0,0.14332333]
[1741492109804,0.168831,86184.0,86183.0,0.14332333]
[1741492113000,0.0992,86184.0,86183.0,0.14332333]
[1741492113200,0.0661,86184.0,86183.0,0.14332333]
[1741492114504,0.035,86184.0,86183.0,0.14332333]
[1741492114807,0.13907338,86191.0,86190.0,0.0696261]
[1741492115101,0.13907338,86191.0,86190.0,0.5055861]
[1741492115607,0.13907338,86191.0,86190.0,0.58520435]
[1741492116105,0.13907338,86191.0,86190.0,0.59994431]
[1741492116708,0.14507338,86191.0,86190.0,0.60094431]
[1741492117905,0.006,86191.0,86190.0,0.60094431]
[1741492120708,0.006,86191.0,86190.0,0.96614431]
[1741492123105,0.0325,86194.0,86190.0,0.89551821]
[1741492123302,0.0304,86193.0,86192.0,0.0696245]
[1741492123504,0.0304,86193.0,86192.0,0.08614275]
[1741492123707,0.0304,86193.0,86192.0,0.08624568]
[1741492123903,0.0304,86193.0,86192.0,0.44704568]
[1741492124409,0.0304,86193.0,86192.0,0.46178564]
[1741492125908,0.0314,86193.0,86192.0,0.46178564]
[1741492126709,0.0304,86193.0,86192.0,0.46278564]
[1741492128907,0.0314,86193.0,86192.0,0.46178564]
[1741492129403,0.0643,86193.0,86192.0,0.46178564]
[1741492130005,0.0643,86193.0,86192.0,0.46180548]
[1741492131321,0.0633,86193.0,86192.0,0.46180548]
[1741492131515,0.0643,86193.0,86192.0,0.46180548]
[1741492131704,0.0643,86193.0,86192.0,0.10100548]
[1741492131901,0.0643,86193.0,86192.0,0.46180548]
[1741492134010,0.0643,86193.0,86192.0,0.4618016]
[1741492134905,0.0633,86193.0,86192.0,0.4618016]
[1741492135219,0.0633,86193.0,86192.0,0.4638016]
[1741492135514,0.0633,86193.0,86192.0,0.4948016]
[1741492135906,0.0633,86193.0,86192.0,0.4938016]
[1741492136106,0.0633,86193.0,86192.0,0.13297049]
[1741492136308,0.0633,86193.0,86192.0,0.49377049]
[1741492137408,0.0633,86193.0,86192.0,0.52617049]
[1741492137813,0.0633,86193.0,86192.0,0.52717049]
[1741492138013,0.0633,86193.0,86192.0,0.52718429]
[1741492138621,0.0633,86193.0,86192.0,0.52618429]
[1741492138829,0.0304,86193.0,86192.0,0.52618429]
[1741492140020,0.0304,86193.0,86192.0,0.50956446]
[1741492140221,0.0304,86193.0,86192.0,0.52611856]
[1741492140621,0.0304,86193.0,86192.0,0.52711856]
[1741492141421,0.0304,86193.0,86192.0,0.52611856]
[1741492143411,0.0304,86193.0,86192.0,0.50956446]
[1741492143616,0.0304,86193.0,86192.0,0.52502699]
[1741492143817,0.0304,86193.0,86192.0,0.52602699]
[1741492148020,0.0304,86193.0,86192.0,0.52502699]
[1741492148927,0.0304,86193.0,86192.0,0.52602699]
[1741492149727,0.0304,86193.0,86192.0,0.52595494]
[1741492150430,0.0304,86193.0,86192.0,0.52495494]
[1741492151728,0.0304,86193.0,86192.0,0.52495015]
[1741492153936,0.0304,86193.0,86192.0,0.52493028]
[1741492154136,0.0304,86193.0,86192.0,0.50856446]
[1741492155927,0.0304,86193.0,86192.0,0.47616446]
[1741492156135,0.0304,86193.0,86192.0,0.50876446]
[1741492156438,0.1,86200.0,86199.0,0.0696189]
[1741492156633,0.1,86200.0,86199.0,0.4304189]
[1741492157242,0.1,86200.0,86199.0,0.44515886]
[1741492157439,0.1,86200.0,86199.0,0.51025886]
[1741492157737,0.101,86200.0,86199.0,0.50720295]
[1741492158145,0.133,86200.0,86199.0,0.50720295]
[1741492158643,0.101,86200.0,86199.0,0.50720295]
[1741492159333,0.101,86200.0,86199.0,0.52359454]
[1741492159934,0.101,86200.0,86199.0,0.52358916]
[1741492160643,0.101,86200.0,86199.0,0.5381723]
[1741492162055,0.101,86200.0,86199.0,0.53820138]
[1741492162358,0.101,86200.0,86199.0,0.90340138]
[1741492164649,0.101,86200.0,86199.0,1.61190558]
[1741492164849,0.0325,86203.0,86202.0,0.0696164]
[1741492165054,0.0325,86203.0,86202.0,0.08603169]
[1741492165361,0.0325,86203.0,86202.0,0.10061483]
[1741492165744,0.0325,86203.0,86202.0,0.16561483]
[1741492166957,0.0345,86203.0,86202.0,0.16561483]
[1741492168059,0.0345,86203.0,86202.0,0.166042]
[1741492168258,0.0345,86203.0,86202.0,0.531242]
[1741492170249,0.0345,86203.0,86202.0,1.252842]
[1741492174160,0.0345,86203.0,86202.0,1.25251462]
[1741492180257,0.0345,86203.0,86202.0,1.23599954]
[1741492180458,0.0345,86203.0,86202.0,1.32766437]
[1741492183155,0.0345,86203.0,86202.0,0.96686437]
[1741492184760,0.0318,86211.0,86202.0,0.89724797]
[1741492184962,0.10421669,86218.0,86210.0,0.3608]
[1741492185166,0.0625,86217.0,86216.0,0.0696051]
[1741492185362,0.0625,86217.0,86216.0,0.08614993]
[1741492185562,0.0625,86217.0,86216.0,0.10073307]
[1741492186060,0.0625,86217.0,86216.0,0.11231379]
[1741492186458,0.0625,86217.0,86216.0,0.09773065]
[1741492187758,0.0645,86217.0,86216.0,0.09873065]
[1741492187960,0.0978,86217.0,86216.0,0.09873065]
[1741492188666,0.0978,86217.0,86216.0,0.08218582]
[1741492190461,0.0978,86217.0,86216.0,0.09857724]
[1741492190660,0.0978,86217.0,86216.0,0.45937724]
[1741492191364,0.0978,86217.0,86216.0,0.45937593]
[1741492195162,0.0654,86217.0,86216.0,0.45937593]
[1741492195369,0.0654,86217.0,86216.0,0.49237593]
[1741492197472,0.0654,86217.0,86216.0,0.52417593]
[1741492198771,0.0654,86217.0,86216.0,0.52417152]
[1741492199274,0.0353,86217.0,86216.0,0.52417152]
[1741492200267,0.0353,86217.0,86216.0,0.52317152]
[1741492200268,0.0343,86217.0,86216.0,0.52317152]
[1741492201075,0.0333,86217.0,86216.0,0.52617152]
[1741492204075,0.0333,86217.0,86216.0,0.52317152]
[1741492204278,0.0333,86217.0,86216.0,0.49217152]
[1741492205580,0.0333,86217.0,86216.0,0.52507152]
[1741492206379,0.0333,86217.0,86216.0,0.52307152]
[1741492206675,0.0333,86217.0,86216.0,0.52607152]
[1741492207163,0.0333,86217.0,86216.0,0.52307152]
[1741492207367,0.0333,86217.0,86216.0,0.52507152]
[1741492210083,0.031,86222.0,86221.0,0.0696011]
[1741492210280,0.0628,86222.0,86221.0,0.0859868]
[1741492210973,0.0628,86222.0,86221.0,0.1505868]
[1741492212169,0.0628,86222.0,86221.0,0.15064531]
[1741492212365,0.0628,86222.0,86221.0,0.1342011]
[1741492212578,0.0628,86222.0,86221.0,0.15064755]
[1741492216585,0.0628,86222.0,86221.0,0.51144755]
[1741492216977,0.0628,86222.0,86221.0,0.51139674]
[1741492217174,0.0628,86222.0,86221.0,0.44679674]
[1741492217374,0.1324003,86222.0,86221.0,0.01639564]
[1741492217587,0.1324003,86222.0,86221.0,0.08599674]
[1741492217781,0.1324003,86222.0,86221.0,0.0696011]
[1741492218876,0.1334003,86222.0,86221.0,0.0696011]
[1741492219976,0.14479235,86222.0,86221.0,0.0696011]
[1741492220181,0.14379235,86222.0,86221.0,0.0696011]
[1741492220484,0.14579235,86222.0,86221.0,0.0696011]
[1741492220686,0.50659235,86222.0,86221.0,0.0696011]
[1741492220990,0.0696011,86221.0,86220.0,0.27687219]
[1741492221379,0.1330011,86221.0,86220.0,0.27687219]
[1741492222183,0.1330011,86221.0,86220.0,0.34647409]
[1741492222484,0.1330011,86221.0,86220.0,0.27687219]
[1741492222785,0.1350011,86221.0,86220.0,0.27687219]
[1741492223191,0.2850011,86221.0,86220.0,0.27687219]
[1741492223586,0.2830011,86221.0,86220.0,0.27687219]
[1741492223789,0.2830011,86221.0,86220.0,0.27787219]
[1741492223790,0.2850011,86221.0,86220.0,0.27787219]
[1741492224590,0.2850011,86221.0,86220.0,0.001]
[1741492224789,0.0696075,86213.0,86212.0,0.20790355]
[1741492225099,0.4304075,86213.0,86212.0,0.20790355]
[1741492225293,0.5804075,86213.0,86212.0,0.20790355]
[1741492225495,0.0696108,86209.0,86208.0,0.27687219]
[1741492225687,0.2196108,86209.0,86208.0,0.27687219]
[1741492225892,0.2186108,86209.0,86208.0,0.27687219]
[1741492226887,0.2206108,86209.0,86208.0,0.27687219]
[1741492227190,0.0706108,86209.0,86208.0,0.27687219]
[1741492228588,0.4314108,86209.0,86206.0,0.0696126]
[1741492228787,0.0696132,86206.0,86201.0,0.0348086]
[1741492229795,0.1330132,86206.0,86201.0,0.0348086]
[1741492230682,0.1360132,86206.0,86201.0,0.0348086]
[1741492230883,0.1360132,86206.0,86203.0,0.0696149]
[1741492231099,0.1360132,86206.0,86205.0,0.06978806]
[1741492231793,0.1360132,86206.0,86205.0,0.13238806]
[1741492233696,0.1360132,86206.0,86205.0,0.06277406]
[1741492237094,0.1360132,86206.0,86205.0,0.13238806]
[1741492238798,0.1360132,86206.0,86205.0,0.06277406]
[1741492239902,0.1330132,86206.0,86205.0,0.06277406]
[1741492240201,0.1360132,86206.0,86205.0,0.06277406]
[1741492241408,0.1360132,86206.0,86205.0,0.13238806]
[1741492242311,0.4968132,86206.0,86205.0,0.13238806]
[1741492242505,0.4998132,86206.0,86205.0,0.06377406]
[1741492246703,0.60387932,86206.0,86205.0,0.13338806]
[1741492248220,0.60387932,86206.0,86205.0,0.06377406]
[1741492250527,0.4998132,86206.0,86205.0,0.06377406]
[1741492250911,0.4998132,86206.0,86205.0,0.13338806]
[1741492252320,0.4998132,86206.0,86205.0,0.06377406]
[1741492254823,0.67365493,86206.0,86205.0,0.06377406]
[1741492256321,0.66765493,86206.0,86205.0,0.05377406]
[1741492259927,0.66765493,86206.0,86205.0,0.12338806]
[1741492260633,0.66765493,86206.0,86205.0,0.05377406]
[1741492262319,0.75841253,86206.0,86205.0,0.05377406]
[1741492263028,0.39761253,86206.0,86205.0,0.05377406]
[1741492263224,0.75841253,86206.0,86205.0,0.05377406]
[1741492263826,0.75841253,86206.0,86205.0,0.12338806]
[1741492264127,0.75841253,86206.0,86205.0,0.15438806]
[1741492265234,0.75841253,86206.0,86205.0,0.08477406]
[1741492265426,0.75841253,86206.0,86205.0,0.15438806]
[1741492266425,0.55023399,86206.0,86205.0,0.15438806]
[1741492270435,0.75841253,86206.0,86205.0,0.15438806]
[1741492271732,0.62539933,86206.0,86205.0,0.15438806]
[1741492272836,0.69501253,86206.0,86205.0,0.15438806]
[1741492273536,0.33421253,86206.0,86205.0,0.15438806]
[1741492273864,0.26459933,86206.0,86205.0,0.15438806]
[1741492274442,0.17406448,86206.0,86205.0,0.18919476]
[1741492276836,0.17406448,86206.0,86205.0,0.33919476]
[1741492277739,0.20817854,86211.0,86205.0,0.33919476]
[1741492277740,0.20817854,86211.0,86210.0,0.06961]
[1741492277940,0.20817854,86211.0,86210.0,0.5218128]
[1741492278635,0.20817854,86211.0,86210.0,0.5528128]
[1741492278835,0.10436704,86211.0,86210.0,0.4832028]
[1741492279036,0.10436704,86211.0,86210.0,0.5876177]
[1741492280937,0.10436704,86211.0,86210.0,0.9528177]
[1741492281941,0.10436704,86211.0,86210.0,0.9364949]
[1741492284542,0.00017406,86214.0,86213.0,0.0696075]
[1741492286244,0.00017406,86214.0,86213.0,0.08144719]
[1741492287153,0.00017406,86214.0,86213.0,0.80744719]
[1741492287651,0.00017406,86214.0,86213.0,0.44664719]
[1741492287854,0.00017406,86214.0,86213.0,0.80744719]
[1741492289552,0.00017406,86214.0,86213.0,0.44664719]
[1741492289756,0.00017406,86214.0,86213.0,0.80744719]
[1741492292054,0.00017406,86214.0,86213.0,0.82382483]
[1741492292250,0.00017406,86214.0,86213.0,0.85572483]
[1741492295454,0.00017406,86214.0,86213.0,0.88892483]
[1741492298247,0.03097406,86214.0,86213.0,0.88898787]
[1741492299249,0.03097406,86214.0,86213.0,0.52818787]
[1741492299446,0.03097406,86214.0,86213.0,0.88898787]
[1741492300967,0.06117406,86214.0,86213.0,0.88898787]
[1741492305369,0.06117406,86214.0,86213.0,0.85708787]
[1741492306178,0.06117406,86214.0,86213.0,0.87620118]
[1741492307277,0.06117406,86214.0,86213.0,0.89254744]
[1741492308068,0.06117406,86214.0,86213.0,0.90800118]
[1741492308674,0.06117406,86214.0,86213.0,0.54720118]
[1741492308874,0.06117406,86214.0,86213.0,0.90800118]
[1741492309276,0.06117406,86214.0,86213.0,0.92435285]
[1741492310173,0.06117406,86214.0,86213.0,0.90800118]
[1741492311079,0.06117406,86214.0,86213.0,0.90796209]
[1741492311480,0.06117406,86214.0,86213.0,0.87244719]
[1741492311881,0.06117406,86214.0,86213.0,1.27344641]
[1741492312683,0.06117406,86214.0,86213.0,1.23799873]
[1741492313975,0.06117406,86214.0,86213.0,1.27343709]
[1741492314785,0.06117406,86214.0,86213.0,1.23799873]
[1741492314980,0.06117406,86214.0,86213.0,1.27344175]
[1741492315188,0.06117406,86214.0,86213.0,1.27344225]
[1741492315377,0.06117406,86214.0,86213.0,1.23799873]
[1741492315687,0.06117406,86214.0,86213.0,1.27344246]
[1741492315981,0.06117406,86214.0,86213.0,1.2734478]
[1741492316686,0.06117406,86214.0,86213.0,0.9082478]
[1741492317785,0.06117406,86214.0,86213.0,0.5474478]
[1741492317987,0.06117406,86214.0,86213.0,0.9082478]
[1741492319990,0.06117406,86214.0,86213.0,0.5474478]
[1741492320186,0.06117406,86214.0,86213.0,0.9082478]
[1741492320492,0.06117406,86214.0,86213.0,0.87279873]
[1741492321285,0.06117406,86214.0,86213.0,0.90825247]
[1741492322592,0.03097406,86214.0,86213.0,0.90825247]
[1741492323483,0.06387406,86214.0,86213.0,0.90825247]
[1741492331083,0.03097406,86214.0,86213.0,0.90825247]
[1741492334587,0.03097406,86214.0,86213.0,0.92467021]
[1741492336694,0.03097406,86214.0,86213.0,0.90825247]
[1741492337194,0.06247406,86214.0,86213.0,0.90825247]
[1741492338397,0.03097406,86214.0,86213.0,0.90825247]
[1741492343799,0.03097406,86214.0,86213.0,0.54745247]
[1741492344001,0.03097406,86214.0,86213.0,0.90825247]
[1741492347303,0.06227406,86214.0,86213.0,0.90825247]
[1741492352505,0.06227406,86214.0,86213.0,0.83141278]
[1741492352704,0.06227406,86214.0,86213.0,0.79595904]
[1741492354207,0.09227406,86214.0,86213.0,0.79595904]
[1741492357109,0.09227406,86214.0,86213.0,0.4304075]
[1741492357510,0.09227406,86214.0,86213.0,0.0696075]
[1741492357713,0.16188076,86214.0,86213.0,0.0696075]
[1741492359312,0.0696092,86211.0,86210.0,0.34667195]